fUST/lending_fUST_20250709
["ID","MTS","AMOUNT","RATE_DAILY","PERIOD"]
[370531316,1752057043152,-460.0,0.0002,2]
[370531318,1752057043161,-246.82,0.0002,2]
[370531320,1752057043171,-460.0,0.0002,2]
[370531322,1752057043180,-460.0,0.0002,2]
[370531324,1752057043190,-460.0,0.0002,2]
[370531326,1752057043200,-460.0,0.0002,2]
[370531328,1752057043210,-242.58,0.0002,2]
[370531330,1752057043219,-460.0,0.0002,2]
[370531332,1752057043228,-1128.81,0.0002,2]
[370531334,1752057043237,-460.0,0.0002,2]
[370531336,1752057043247,-785.31,0.0002,2]
[370531338,1752057043256,-460.0,0.0002,2]
[370531340,1752057043265,-1464.22,0.0002,2]
[370531342,1752057043274,-460.0,0.0002,2]
[370531344,1752057043283,-460.0,0.0002,2]
[370531346,1752057043293,-460.0,0.0002,2]
[370531348,1752057043303,-254.07,0.0002,2]
[370531351,1752057043312,-322.03,0.0002,2]
[370531354,1752057043321,-460.0,0.0002,2]
[370531357,1752057043331,-1469.21,0.0002,2]
[370531360,1752057043340,-460.0,0.0002,2]
[370531362,1752057043349,-3210.39,0.0002,2]
[370531364,1752057043359,-433.44,0.0002,2]
[370531366,1752057043368,-527.22,0.0002,2]
[370531369,1752057043379,-460.0,0.0002,2]
[370531371,1752057043388,-460.0,0.0002,2]
[370531373,1752057043399,-460.0,0.0002,2]
[370531375,1752057043408,-460.0,0.0002,2]
[370531377,1752057043417,-460.0,0.0002,2]
[370531379,1752057043427,-1630.76,0.0002,2]
[370531381,1752057043436,-460.0,0.0002,2]
[370531383,1752057043444,-508.35,0.0002,2]
[370531385,1752057043454,-3558.48,0.0002,2]
[370531387,1752057043463,-460.0,0.0002,2]
[370531389,1752057043476,-460.0,0.0002,2]
[370531390,1752057043486,-2021.12,0.0002,2]
[370531392,1752057043495,-460.0,0.0002,2]
[370531394,1752057043505,-1269.15,0.0002,2]
[370531396,1752057043514,-460.0,0.0002,2]
[370531398,1752057043523,-460.0,0.0002,2]
[370531400,1752057043533,-310.57,0.0002,2]
[370531402,1752057043542,-460.0,0.0002,2]
[370531404,1752057043551,-460.0,0.0002,2]
[370531406,1752057043562,-1469.6,0.0002,2]
[370531408,1752057043571,-1774.41,0.0002,2]
[370531410,1752057043581,-460.0,0.0002,2]
[370531412,1752057043594,-650.83,0.0002,2]
[370531414,1752057043604,-460.0,0.0002,2]
[370531416,1752057043614,-460.0,0.0002,2]
[370531419,1752057043623,-1031.27,0.0002,2]
[370531421,1752057043633,-460.0,0.0002,2]
[370531423,1752057043642,-460.0,0.0002,2]
[370531425,1752057043651,-460.0,0.0002,2]
[370531427,1752057043661,-871.94,0.0002,2]
[370531429,1752057043671,-1197.96,0.0002,2]
[370531431,1752057043680,-460.0,0.0002,2]
[370531433,1752057043689,-460.0,0.0002,2]
[370531435,1752057043699,-460.0,0.0002,2]
[370531437,1752057043710,-460.0,0.0002,2]
[370531439,1752057043719,-532.83,0.0002,2]
[370531441,1752057043729,-558.55,0.0002,2]
[370531443,1752057043738,-460.0,0.0002,2]
[370531445,1752057043747,-460.0,0.0002,2]
[370531447,1752057043756,-460.0,0.0002,2]
[370531449,1752057043765,-460.0,0.0002,2]
[370531450,1752057043774,-460.0,0.0002,2]
[370531452,1752057043783,-2395.16,0.0002,2]
[370531455,1752057043793,-566.0,0.0002,2]
[370531457,1752057043802,-709.76,0.0002,2]
[370531459,1752057043811,-218.67,0.0002,2]
[370531462,1752057043822,-460.0,0.0002,2]
[370531464,1752057043831,-460.0,0.0002,2]
[370531467,1752057043840,-460.0,0.0002,2]
[370531469,1752057043849,-460.0,0.0002,2]
[370531471,1752057043858,-460.0,0.0002,2]
[370531473,1752057043868,-460.0,0.0002,2]
[370531475,1752057043877,-460.0,0.0002,2]
[370531477,1752057043886,-765.4,0.0002,2]
[370531479,1752057043894,-1282.64804363,0.00020107,2]
[370531481,1752057043904,-346.795252,0.00020146,2]
[370531483,1752057043913,-180.791108,0.00020187,2]
[370531485,1752057043922,-346.795252,0.00020242,2]
[370531487,1752057043931,-259.8087627,0.00020272,2]
[370531489,1752057043940,-460.0,0.00020273,2]
[370531491,1752057043950,-460.0,0.00020273,2]
[370531493,1752057043959,-460.0,0.00020273,2]
[370531495,1752057043968,-460.0,0.00020273,2]
[370531497,1752057043977,-460.0,0.00020273,2]
[370531499,1752057043987,-460.0,0.00020273,2]
[370531502,1752057043995,-460.0,0.00020273,2]
[370531505,1752057044005,-460.0,0.00020273,2]
[370531508,1752057044014,-296.56,0.00020273,2]
[370531511,1752057044023,-460.0,0.00020273,2]
[370531513,1752057044033,-460.0,0.00020273,2]
[370531515,1752057044042,-460.0,0.00020273,2]
[370531517,1752057044051,-460.0,0.00020273,2]
[370531519,1752057044060,-460.0,0.00020273,2]
[370531521,1752057044069,-506.25,0.00020273,2]
[370531523,1752057044078,-460.0,0.00020273,2]
[370531525,1752057044087,-526.18,0.00020273,2]
[370531527,1752057044096,-468.69,0.00020273,2]
[370531529,1752057044106,-460.0,0.00020273,2]
[370531531,1752057044115,-460.0,0.00020273,2]
[370531533,1752057044124,-460.0,0.00020273,2]
[370531535,1752057044133,-460.0,0.00020273,2]
[370531537,1752057044142,-498.88,0.00020273,2]
[370531538,1752057044151,-460.0,0.00020273,2]
[370531540,1752057044160,-460.0,0.00020273,2]
[370531542,1752057044169,-460.0,0.00020273,2]
[370531544,1752057044179,-460.0,0.00020273,2]
[370531545,1752057044188,-460.0,0.00020273,2]
[370531546,1752057044197,-460.0,0.00020273,2]
[370531547,1752057044206,-460.0,0.00020273,2]
[370531548,1752057044217,-460.0,0.00020273,2]
[370531549,1752057044226,-460.0,0.00020273,2]
[370531550,1752057044235,-1128.81,0.00020273,2]
[370531551,1752057044245,-460.0,0.00020273,2]
[370531552,1752057044254,-785.31,0.00020273,2]
[370531553,1752057044264,-460.0,0.00020273,2]
[370531554,1752057044273,-1464.22,0.00020273,2]
[370531555,1752057044282,-460.0,0.00020273,2]
[370531556,1752057044291,-154.75,0.00020273,2]
[370531557,1752057044300,-460.0,0.00020273,2]
[370531558,1752057044309,-460.0,0.00020273,2]
[370531559,1752057044319,-1469.21,0.00020273,2]
[370531560,1752057044328,-460.0,0.00020273,2]
[370531561,1752057044337,-3210.39,0.00020273,2]
[370531562,1752057044346,-527.22,0.00020273,2]
[370531563,1752057044355,-460.0,0.00020273,2]
[370531564,1752057044364,-460.0,0.00020273,2]
[370531565,1752057044373,-460.0,0.00020273,2]
[370531566,1752057044384,-232.93,0.00020273,2]
[370531567,1752057044393,-460.0,0.00020273,2]
[370531568,1752057044403,-1630.76,0.00020273,2]
[370531569,1752057044412,-460.0,0.00020273,2]
[370531571,1752057044421,-508.35,0.00020273,2]
[370531572,1752057044430,-3558.48,0.00020273,2]
[370531574,1752057044439,-460.0,0.00020273,2]
[370531576,1752057044448,-460.0,0.00020273,2]
[370531578,1752057044457,-2021.12,0.00020273,2]
[370531580,1752057044467,-460.0,0.00020273,2]
[370531582,1752057044480,-1269.15,0.00020273,2]
[370531584,1752057044489,-460.0,0.00020273,2]
[370531586,1752057044499,-460.0,0.00020273,2]
[370531588,1752057044508,-460.0,0.00020273,2]
[370531590,1752057044518,-460.0,0.00020273,2]
[370531592,1752057044527,-1469.6,0.00020273,2]
[370531594,1752057044536,-1774.41,0.00020273,2]
[370531596,1752057044548,-460.0,0.00020273,2]
[370531598,1752057044558,-650.83,0.00020273,2]
[370531600,1752057044568,-460.0,0.00020273,2]
[370531602,1752057044578,-460.0,0.00020273,2]
[370531604,1752057044587,-1031.27,0.00020273,2]
[370531606,1752057044596,-460.0,0.00020273,2]
[370531608,1752057044607,-576.6,0.00020273,2]
[370531610,1752057044616,-293.3,0.00020273,2]
[370531612,1752057044625,-871.94,0.00020273,2]
[370531614,1752057044635,-1197.96,0.00020273,2]
[370531616,1752057044644,-460.0,0.00020273,2]
[370531618,1752057044654,-460.0,0.00020273,2]
[370531620,1752057044663,-460.0,0.00020273,2]
[370531622,1752057044673,-460.0,0.00020273,2]
[370531624,1752057044682,-532.83,0.00020273,2]
[370531626,1752057044692,-558.55,0.00020273,2]
[370531628,1752057044702,-460.0,0.00020273,2]
[370531630,1752057044712,-460.0,0.00020273,2]
[370531632,1752057044721,-460.0,0.00020273,2]
[370531634,1752057044730,-198.9,0.00020273,2]
[370531636,1752057044739,-2395.16,0.00020273,2]
[370531638,1752057044748,-566.0,0.00020273,2]
[370531640,1752057044757,-709.76,0.00020273,2]
[370531642,1752057044765,-460.0,0.00020273,2]
[370531644,1752057044775,-460.0,0.00020273,2]
[370531646,1752057044784,-460.0,0.00020273,2]
[370531648,1752057044794,-460.0,0.00020273,2]
[370531650,1752057044803,-460.0,0.00020273,2]
[370531652,1752057044812,-460.0,0.00020273,2]
[370531654,1752057044820,-217.482996,0.00020273,2]
[370531656,1752057044830,-765.4,0.00020273,2]
[370531658,1752057044839,-500.0,0.00020295,2]
[370531659,1752057044847,-500.0,0.00020302,2]
[370531661,1752057044857,-1000.0,0.00020302,2]
[370531663,1752057044866,-1000.0,0.00020302,2]
[370531665,1752057044875,-1000.0,0.00020302,2]
[370531667,1752057044884,-1000.0,0.00020302,2]
[370531669,1752057044893,-1000.0,0.00020302,2]
[370531671,1752057044902,-1000.0,0.00020302,2]
[370531673,1752057044911,-500.0,0.00020302,2]
[370531675,1752057044920,-1000.0,0.00020302,2]
[370531677,1752057044929,-1000.0,0.00020302,2]
[370531679,1752057044938,-1282.64804363,0.00020314,3]
[370531681,1752057044948,-346.795252,0.00020339,2]
[370531683,1752057044957,-346.795252,0.00020435,2]
[370531685,1752057044966,-214.14293035,0.00020439,2]
[370531687,1752057044975,-848.55005627,0.00020439,2]
[370531689,1752057044984,-160.0,0.00020439,2]
[370531691,1752057044993,-837.99933892,0.00020439,2]
[370531693,1752057045002,-230.53906051,0.00020439,2]
[370531695,1752057045012,-12589.12013084,0.00020439,2]
[370531697,1752057045021,-215.27775528,0.00020439,2]
[370531698,1752057045031,-1282.64804363,0.00020521,3]
[370531700,1752057045040,-346.795252,0.00020532,2]
[370531702,1752057045049,-1191.82,0.00020538,3]
[370531704,1752057045058,-1191.82,0.00020538,3]
[370531706,1752057045067,-1000.0,0.00020546,2]
[370531708,1752057045076,-460.0,0.00020547,2]
[370531710,1752057045085,-460.0,0.00020547,2]
[370531712,1752057045095,-460.0,0.00020547,2]
[370531714,1752057045104,-460.0,0.00020547,2]
[370531716,1752057045112,-460.0,0.00020547,2]
[370531718,1752057045121,-460.0,0.00020547,2]
[370531720,1752057045130,-460.0,0.00020547,2]
[370531722,1752057045139,-460.0,0.00020547,2]
[370531724,1752057045148,-460.0,0.00020547,2]
[370531726,1752057045157,-460.0,0.00020547,2]
[370531728,1752057045166,-460.0,0.00020547,2]
[370531730,1752057045176,-460.0,0.00020547,2]
[370531732,1752057045188,-188.40409149,0.00020547,2]
[370531734,1752057045197,-172.22,0.00020547,2]
[370531736,1752057045206,-526.18,0.00020547,2]
[370531738,1752057045215,-468.69,0.00020547,2]
[370531740,1752057045225,-460.0,0.00020547,2]
[370531741,1752057045233,-460.0,0.00020547,2]
[370531743,1752057045242,-498.88,0.00020547,2]
[370531745,1752057045251,-460.0,0.00020547,2]
[370531747,1752057045261,-460.0,0.00020547,2]
[370531749,1752057045270,-460.0,0.00020547,2]
[370531751,1752057045279,-460.0,0.00020547,2]
[370531753,1752057045288,-460.0,0.00020547,2]
[370531755,1752057045297,-272.64,0.00020547,2]
[370531757,1752057045307,-1128.81,0.00020547,2]
[370531759,1752057045316,-460.0,0.00020547,2]
[370531761,1752057045325,-785.31,0.00020547,2]
[370531763,1752057045334,-1464.22,0.00020547,2]
[370531765,1752057045343,-460.0,0.00020547,2]
[370531767,1752057045353,-460.0,0.00020547,2]
[370531769,1752057045362,-460.0,0.00020547,2]
[370531771,1752057045371,-1469.21,0.00020547,2]
[370531773,1752057045380,-460.0,0.00020547,2]
[370531775,1752057045390,-3210.39,0.00020547,2]
[370531777,1752057045399,-527.22,0.00020547,2]
[370531779,1752057045408,-460.0,0.00020547,2]
[370531781,1752057045417,-460.0,0.00020547,2]
[370531783,1752057045426,-567.10384252,0.00020547,2]
[370531785,1752057045436,-1630.76,0.00020547,2]
[370531787,1752057045445,-460.0,0.00020547,2]
[370531789,1752057045455,-508.35,0.00020547,2]
[370531791,1752057045464,-3558.48,0.00020547,2]
[370531793,1752057045478,-460.0,0.00020547,2]
[370531795,1752057045487,-460.0,0.00020547,2]
[370531797,1752057045496,-2021.12,0.00020547,2]
[370531799,1752057045505,-460.0,0.00020547,2]
[370531801,1752057045514,-1269.15,0.00020547,2]
[370531803,1752057045523,-460.0,0.00020547,2]
[370531805,1752057045532,-460.0,0.00020547,2]
[370531807,1752057045541,-460.0,0.00020547,2]
[370531809,1752057045550,-460.0,0.00020547,2]
[370531811,1752057045559,-1469.6,0.00020547,2]
[370531813,1752057045568,-1774.41,0.00020547,2]
[370531815,1752057045577,-460.0,0.00020547,2]
[370531817,1752057045586,-650.83,0.00020547,2]
[370531819,1752057045595,-460.0,0.00020547,2]
[370531821,1752057045605,-460.0,0.00020547,2]
[370531823,1752057045614,-1031.27,0.00020547,2]
[370531825,1752057045623,-460.0,0.00020547,2]
[370531827,1752057045632,-871.94,0.00020547,2]
[370531829,1752057045642,-1197.96,0.00020547,2]
[370531830,1752057045652,-460.0,0.00020547,2]
[370531832,1752057045662,-527.08,0.00020547,2]
[370531834,1752057045671,-460.0,0.00020547,2]
[370531836,1752057045680,-532.83,0.00020547,2]
[370531838,1752057045690,-558.55,0.00020547,2]
[370531840,1752057045701,-460.0,0.00020547,2]
[370531842,1752057045710,-460.0,0.00020547,2]
[370531844,1752057045719,-460.0,0.00020547,2]
[370531846,1752057045729,-2395.16,0.00020547,2]
[370531848,1752057045738,-566.0,0.00020547,2]
[370531850,1752057045748,-709.76,0.00020547,2]
[370531852,1752057045757,-460.0,0.00020547,2]
[370531854,1752057045766,-450.34781317,0.00020547,2]
[370531856,1752057045775,-460.0,0.00020547,2]
[370531858,1752057045785,-460.0,0.00020547,2]
[370531860,1752057045795,-460.0,0.00020547,2]
[370531862,1752057045804,-460.0,0.00020547,2]
[370531876,1752057045932,-765.4,0.00020547,2]
[370531878,1752057045942,-2156.45,0.000206,2]
[370531880,1752057045951,-346.795252,0.00020628,2]
[370531882,1752057045960,-22946.66876487,0.0002071,2]
[370531884,1752057045969,-346.795252,0.00020724,2]
[370531886,1752057045979,-1282.64804363,0.00020728,3]
[370531888,1752057045988,-346.795252,0.00020821,2]
[370531890,1752057045999,-460.0,0.00020821,2]
[370531892,1752057046010,-460.0,0.00020821,2]
[370531894,1752057046020,-460.0,0.00020821,2]
[370531896,1752057046030,-460.0,0.00020821,2]
[370531898,1752057046039,-460.0,0.00020821,2]
[370531900,1752057046048,-460.0,0.00020821,2]
[370531902,1752057046057,-460.0,0.00020821,2]
[370531903,1752057046066,-187.85676103,0.00020821,2]
[370531905,1752057046076,-460.0,0.00020821,2]
[370531907,1752057046085,-460.0,0.00020821,2]
[370531909,1752057046094,-526.18,0.00020821,2]
[370531911,1752057046103,-468.69,0.00020821,2]
[370531913,1752057046113,-460.0,0.00020821,2]
[370531915,1752057046122,-460.0,0.00020821,2]
[370531917,1752057046131,-498.88,0.00020821,2]
[370531919,1752057046140,-246.62,0.00020821,2]
[370531921,1752057046149,-460.0,0.00020821,2]
[370531923,1752057046159,-460.0,0.00020821,2]
[370531925,1752057046168,-460.0,0.00020821,2]
[370531927,1752057046178,-460.0,0.00020821,2]
[370531929,1752057046187,-1128.81,0.00020821,2]
[370531931,1752057046196,-460.0,0.00020821,2]
[370531933,1752057046205,-785.31,0.00020821,2]
[370531935,1752057046214,-1464.22,0.00020821,2]
[370531937,1752057046223,-460.0,0.00020821,2]
[370531939,1752057046232,-460.0,0.00020821,2]
[370531941,1752057046242,-1469.21,0.00020821,2]
[370531943,1752057046252,-460.0,0.00020821,2]
[370531945,1752057046261,-3210.39,0.00020821,2]
[370531947,1752057046272,-527.22,0.00020821,2]
[370531949,1752057046282,-460.0,0.00020821,2]
[370531951,1752057046291,-460.0,0.00020821,2]
[370531953,1752057046300,-1630.76,0.00020821,2]
[370531955,1752057046311,-460.0,0.00020821,2]
[370531957,1752057046321,-508.35,0.00020821,2]
[370531959,1752057046330,-3558.48,0.00020821,2]
[370531961,1752057046339,-555.04278261,0.00020821,2]
[370531963,1752057046348,-460.0,0.00020821,2]
[370531965,1752057046357,-2021.12,0.00020821,2]
[370531967,1752057046367,-460.0,0.00020821,2]
[370531969,1752057046376,-1269.15,0.00020821,2]
[370531971,1752057046385,-460.0,0.00020821,2]
[370531973,1752057046395,-460.0,0.00020821,2]
[370531974,1752057046404,-460.0,0.00020821,2]
[370531976,1752057046413,-567.38996137,0.00020821,2]
[370531978,1752057046422,-1469.6,0.00020821,2]
[370531980,1752057046432,-1774.41,0.00020821,2]
[370531982,1752057046441,-460.0,0.00020821,2]
[370531984,1752057046450,-650.83,0.00020821,2]
[370531986,1752057046459,-460.0,0.00020821,2]
[370531988,1752057046470,-572.58,0.00020821,2]
[370531990,1752057046481,-1031.27,0.00020821,2]
[370531992,1752057046490,-871.94,0.00020821,2]
[370531994,1752057046500,-1197.96,0.00020821,2]
[370531996,1752057046511,-460.0,0.00020821,2]
[370531998,1752057046520,-532.83,0.00020821,2]
[370532000,1752057046530,-558.55,0.00020821,2]
[370532002,1752057046540,-460.0,0.00020821,2]
[370532004,1752057046550,-460.0,0.00020821,2]
[370532006,1752057046561,-2395.16,0.00020821,2]
[370532008,1752057046570,-566.0,0.00020821,2]
[370532010,1752057046580,-709.76,0.00020821,2]
[370532012,1752057046589,-460.0,0.00020821,2]
[370532014,1752057046598,-460.0,0.00020821,2]
[370532016,1752057046607,-460.0,0.00020821,2]
[370532018,1752057046617,-460.0,0.00020821,2]
[370532020,1752057046626,-460.0,0.00020821,2]
[370532022,1752057046638,-257.70502127,0.00020843,2]
[370532025,1752057046649,-1500.0,0.0002085,2]
[370532027,1752057046658,-338.77437153,0.0002085,2]
[370532029,1752057046668,-1500.0,0.0002085,2]
[370532031,1752057046677,-1624.88944406,0.0002085,2]
[370532033,1752057046687,-1500.0,0.0002085,2]
[370532034,1752057046697,-1500.0,0.0002085,2]
[370532036,1752057046707,-500.0,0.0002085,2]
[370532039,1752057046717,-605.189,0.00020853,2]
[370532040,1752057046727,-515.80460882,0.00020867,2]
[370532042,1752057046736,-420.0,0.00020898,2]
[370532044,1752057046746,-346.795252,0.00020917,2]
[370532045,1752057046755,-1282.64804363,0.00020934,4]
[370532046,1752057046765,-346.795252,0.00021014,2]
[370532047,1752057046774,-562.36,0.0002104,2]
[370532048,1752057046784,-400.20088096,0.00021045,2]
[370532049,1752057046793,-473172.46483,0.00021049,4]
[370532050,1752057046802,-3000.0,0.0002105,2]
[370532051,1752057046811,-3000.0,0.0002106,2]
[370532052,1752057046820,-3000.0,0.0002107,2]
[370532054,1752057046831,-3000.0,0.0002108,2]
[370532056,1752057046840,-3000.0,0.0002109,2]
[370532058,1752057046850,-1500.0,0.00021094,2]
[370532060,1752057046859,-460.0,0.00021095,2]
[370532062,1752057046869,-460.0,0.00021095,2]
[370532064,1752057046877,-460.0,0.00021095,2]
[370532066,1752057046886,-240.34477763,0.00021095,2]
[370532068,1752057046895,-460.0,0.00021095,2]
[370532070,1752057046904,-460.0,0.00021095,2]
[370532072,1752057046913,-460.0,0.00021095,2]
[370532074,1752057046923,-460.0,0.00021095,2]
[370532076,1752057046932,-460.0,0.00021095,2]
[370532078,1752057046941,-460.0,0.00021095,2]
[370532080,1752057046951,-526.18,0.00021095,2]
[370532082,1752057046960,-468.69,0.00021095,2]
[370532084,1752057046970,-460.0,0.00021095,2]
[370532086,1752057046979,-460.0,0.00021095,2]
[370532088,1752057046988,-498.88,0.00021095,2]
[370532090,1752057046998,-347.67313241,0.00021095,2]
[370532092,1752057047008,-460.0,0.00021095,2]
[370532094,1752057047017,-254.17,0.00021095,2]
[370532096,1752057047027,-460.0,0.00021095,2]
[370532098,1752057047036,-460.0,0.00021095,2]
[370532100,1752057047046,-1128.81,0.00021095,2]
[370532102,1752057047055,-785.31,0.00021095,2]
[370532104,1752057047065,-1464.22,0.00021095,2]
[370532106,1752057047074,-460.0,0.00021095,2]
[370532108,1752057047083,-460.0,0.00021095,2]
[370532110,1752057047092,-1469.21,0.00021095,2]
[370532112,1752057047101,-460.0,0.00021095,2]
[370532114,1752057047111,-3210.39,0.00021095,2]
[370532116,1752057047120,-527.22,0.00021095,2]
[370532118,1752057047129,-460.0,0.00021095,2]
[370532120,1752057047139,-460.0,0.00021095,2]
[370532122,1752057047148,-1630.76,0.00021095,2]
[370532124,1752057047158,-460.0,0.00021095,2]
[370532126,1752057047169,-508.35,0.00021095,2]
[370532128,1752057047179,-3558.48,0.00021095,2]
[370532130,1752057047188,-460.0,0.00021095,2]
[370532132,1752057047197,-647.93881736,0.00021095,2]
[370532146,1752057047313,-8302.68,0.00019452,2]
[370532148,1752057047323,-1373.18118264,0.00021095,2]
[370532150,1752057047332,-460.0,0.00021095,2]
[370532152,1752057047342,-1269.15,0.00021095,2]
[370532154,1752057047351,-460.0,0.00021095,2]
[370532156,1752057047361,-460.0,0.00021095,2]
[370532158,1752057047370,-1469.6,0.00021095,2]
[370532160,1752057047380,-1774.41,0.00021095,2]
[370532162,1752057047389,-460.0,0.00021095,2]
[370532164,1752057047399,-650.83,0.00021095,2]
[370532166,1752057047409,-460.0,0.00021095,2]
[370532168,1752057047418,-1031.27,0.00021095,2]
[370532170,1752057047427,-871.94,0.00021095,2]
[370532172,1752057047436,-1197.96,0.00021095,2]
[370532174,1752057047445,-328.44410041,0.00021095,2]
[370532176,1752057047456,-131.55589959,0.00021095,2]
[370532178,1752057047465,-532.83,0.00021095,2]
[370532180,1752057047476,-558.55,0.00021095,2]
[370532182,1752057047485,-460.0,0.00021095,2]
[370532184,1752057047494,-460.0,0.00021095,2]
[370532186,1752057047503,-2395.16,0.00021095,2]
[370532188,1752057047512,-566.0,0.00021095,2]
[370532190,1752057047522,-709.76,0.00021095,2]
[370532192,1752057047531,-460.0,0.00021095,2]
[370532194,1752057047541,-460.0,0.00021095,2]
[370532196,1752057047551,-460.0,0.00021095,2]
[370532198,1752057047560,-460.0,0.00021095,2]
[370532200,1752057047570,-513.49575433,0.00021095,2]
[370532202,1752057047579,-3000.0,0.000211,2]
[370532204,1752057047588,-346.795252,0.0002111,2]
[370532206,1752057047598,-160.63866354,0.0002111,2]
[370532208,1752057047613,-1130.77446522,0.0002111,2]
[370532211,1752057047624,-1708.58687124,0.0002111,2]
[370532213,1752057047634,-3000.0,0.0002112,2]
[370532215,1752057047644,-3000.0,0.0002113,2]
[370532217,1752057047653,-307.75358875,0.0002114,2]
[370532234,1752057047804,-8302.68,0.00019726,2]
[370532236,1752057047813,-8302.68,0.0002,2]
[370532238,1752057047822,-8302.68,0.00020273,2]
[370532240,1752057047833,-8302.68,0.00020547,2]
[370532242,1752057047842,-765.4,0.00020821,2]
[370532244,1752057047851,-8302.68,0.00020821,2]
[370532246,1752057047860,-765.4,0.00021095,2]
[370532247,1752057047869,-2692.24641125,0.0002114,2]
[370532249,1752057047878,-1282.64804363,0.00021141,4]
[370532251,1752057047888,-3000.0,0.0002115,2]
[370532253,1752057047897,-3000.0,0.0002116,2]
[370532255,1752057047906,-500.0,0.00021164,2]
[370532257,1752057047915,-3000.0,0.0002117,2]
[370532259,1752057047924,-3000.0,0.0002118,2]
[370532262,1752057047935,-3000.0,0.0002119,2]
[370532264,1752057047943,-3000.0,0.000212,2]
[370532266,1752057047953,-346.795252,0.00021206,2]
[370532268,1752057047963,-3000.0,0.0002121,2]
[370532270,1752057047971,-3000.0,0.0002122,2]
[370532272,1752057047981,-3000.0,0.0002123,2]
[370532274,1752057047990,-2160.6313643,0.0002124,2]
[370532276,1752057048001,-839.3686357,0.0002124,2]
[370532278,1752057048010,-1494.37396954,0.0002125,2]
[370532280,1752057048022,-1045.36510411,0.0002125,2]
[370532677,1752057088179,500.0,0.000183,2]
[370532678,1752057088352,245.18572527,0.00027397,120]
[370532682,1752057607083,3801.62422893,0.00017375,2]
[370532683,1752057607615,1499.50275661,0.00017375,2]
[370532686,1752057739875,151.36993038,0.00018,2]
[370532688,1752057968178,170.957203,0.00013699,2]
[370532691,1752058213246,7178.17011001,0.000183,2]
[370532692,1752058213270,2821.82988999,0.000183,2]
[370532693,1752058218786,210.52018063,0.00027397,120]
[370532694,1752058221685,6178.17011001,0.000183,2]
[370532695,1752058221707,3821.82988999,0.000183,2]
[370532696,1752058230906,5178.17011001,0.000183,2]
[370532697,1752058230931,4821.82988999,0.000183,2]
[370532725,1752058231937,-275.91714094,0.000189,2]
[370532727,1752058231947,-204.08285906,0.00019,2]
[370532732,1752058231990,-98.55401603,0.00019,2]
[370532734,1752058232000,-302.66710251,0.00019,2]
[370532736,1752058232010,-99.37389146,0.00019177,2]
[370532738,1752058232022,-200.62610854,0.00019177,2]
[370532740,1752058232031,-351.71013816,0.00019178,2]
[370532743,1752058232047,-86.05059217,0.00019178,2]
[370532745,1752058232057,-460.0,0.00019178,2]